[Event "14th Chennai GM Open 2023"]
[Site "Chennai"]
[Date "2024.01.01"]
[Round "2.1"]
[White "Aronyak Ghosh"]
[Black "Yash Abhijit Patil"]
[Result "1-0"]
[ECO "E62"]
[WhiteElo "2545"]
[BlackElo "1689"]
[Annotator "TA"]
[PlyCount "97"]
[EventDate "2023.12.31"]
[EventType "swiss"]
[EventCountry "IND"]
[SourceTitle "playchess.com"]
[Source "ChessBase"]
[SourceQuality "1"]
[TimeControl "5400+30"]

{[%evp 13,97,37,47,31,55,9,15,11,10,13,50,54,56,46,56,58,42,33,34,33,44,21,58,60,56,55,66,61,34,29,113,114,128,114,260,248,239,245,269,266,248,246,261,61,78,20,30,29,25,0,20,8,33,36,35,0,0,0,0,0,0,0,75,6,35,0,0,6,239,237,467,441,629,644,1516,1347,12837,12837,12842,12840,12843,12843,12843,12844,12845,12845]} 1. Nf3 {[%emt 0:04:37]} Nf6 {[%emt 1:31:00]} 2. c4 {[%emt 0:00:24]} g6 {[%emt 0:00:00]} 3. g3 {[%emt 0:00:34]} Bg7 {[%emt 0:00:00]} 4. Bg2 {[%emt 0:00:12]} O-O {[%emt 0:00:00]} 5. Nc3 {[%emt 0:00:58]} d6 {[%emt 0:00:00]} 6. d4 {[%emt 0:00:23]} c6 {[%emt 0:00:00]} 7. O-O {[%emt 0:00:50]} Qc7 {[%emt 0:00:00] Recently 7...Bf5 got a lot of attention.} 8. Bf4 {[%emt 0:10:31] E62: King's Indian: Fianchetto: 6...c6 and Panno Variation (6...Nc6) without ...a6.} Bf5 {[%emt 0:00:00] [#]} 9. c5 $146 {[%emt 0:06:24]} (9. Re1 $14) ({Predecessor:} 9. Qd2 Re8 10. Nh4 Bg4 11. Rad1 Na6 12. h3 Be6 13. b3 Rad8 14. e4 Qa5 15. Be3 Bc8 {1-0 Lagergren,H (2012)-Mataix Arbona,C (1901) W-ch WS/H/466 email 2014}) 9... Nh5 $11 {[%emt 0:00:00]} 10. cxd6 {[%emt 0:01:16] The position is equal.} exd6 {[%emt 0:00:00]} 11. Bg5 {[%emt 0:00:21]} h6 {[%emt 0:00:00]} 12. Bd2 {[%emt 0:00:32]} (12. e4 Bxe4 13. Nxe4 hxg5 $11) 12... Nf6 {[%emt 0:00:00]} 13. Nh4 {[%emt 0:04:18]} Be6 {[%emt 0:00:00]} 14. Qc1 {[%emt 0:03:45]} Kh7 {[%emt 0:00:00]} 15. e4 {[%emt 0:00:24]} Na6 {[%emt 0:00:00]} 16. h3 {[%emt 0:01:13]} Qd7 {[%emt 0:00:00]} 17. g4 {[%emt 0:08:14]} d5 {[%emt 0:00:00]} 18. e5 {[%emt 0:00:53]} Ne4 {[%emt 0:00:00]} 19. f4 {[%emt 0:01:05] Threatens to win with f5.} f5 {[%emt 0:00:00]} 20. exf6 $1 {[%emt 0:05:02]} Bxf6 {[%emt 0:00:00]} 21. Nf3 {[%emt 0:00:12]} (21. Nxg6 {feels hotter.} Kxg6 22. Nxe4 dxe4 23. f5+) 21... c5 {[%emt 0:00:00] [#]} (21... h5 $11) 22. Ne5 $1 $16 {[%emt 0:05:08]} Bxe5 {[%emt 0:00:00]} 23. dxe5 {[%emt 0:00:10]} h5 {[%emt 0:00:00]} (23... Nxd2 $16 {might work better.} 24. Qxd2 Rad8) 24. Nxe4 $18 {[%emt 0:08:54]} dxe4 {[%emt 0:00:00]} 25. Qe1 {[%emt 0:00:26]} hxg4 {[%emt 0:00:00]} 26. hxg4 {[%emt 0:03:56]} (26. Bxe4 gxh3 27. Qh4+ Kg8 28. Bxg6 Bf5) 26... Bxg4 {[%emt 0:00:00]} 27. Bxe4 {[%emt 0:00:41]} Bf5 {[%emt 0:00:00] aiming for ...Qd4+.} 28. Bf3 $2 {[%emt 0:02:24] This pair of bishops is nice.} (28. e6 $18 Qd4+ 29. Rf2 Qxe4 30. Rh2+ Kg7 31. Bc3+ Rf6 32. Qf2 Bxe6 33. Re1) 28... Nc7 $1 $14 {[%emt 0:00:00]} 29. Be3 {[%emt 0:01:28]} (29. Bxb7 $16 {Qh4+ is the strong threat.} Rab8 30. Bf3 (30. Qh4+ $2 Kg8 $19)) 29... Ne6 {[%emt 0:00:00]} 30. Rf2 {[%emt 0:05:14][%cal Bf1f2,Bf2d2,Bd2d5][%mdl 32]} Kg7 {[%emt 0:00:00]} 31. Rd1 {[%emt 0:00:32]} (31. Rd2 $5 {[%cal Rd2d7]} Qe7 32. Rad1 $14) 31... Qe7 {[%emt 0:00:00]} 32. Rd6 {[%emt 0:01:49]} Rad8 {[%emt 0:00:00][%cal Oe6f4]} 33. Rfd2 {[%emt 0:00:18]} b6 {[%emt 0:00:00]} 34. Bg2 {[%emt 0:03:58]} (34. Bc6 $5 {[%cal Rd6d7]} Rxd6 35. exd6 $14 (35. Rxd6 Rd8 $11)) 34... Rxd6 {[%emt 0:00:00]} (34... Rh8 {keeps more tension.} 35. Qg3 Rh4 36. Qf3 Rhh8) 35. exd6 {[%emt 0:00:27]} Qf6 {[%emt 0:00:00]} 36. Rd5 $36 {[%emt 0:00:17][%mdl 2048] White has good play.} Rd8 {[%emt 0:00:00]} ({Don't play} 36... Qxb2 37. d7 $16) 37. b4 {[%emt 0:03:15]} Nd4 {[%emt 0:00:23] [#]} (37... cxb4 $11 38. Qxb4 Qa1+ 39. Kf2 Qxa2+ 40. Rd2 Qa1) 38. bxc5 {[%emt 0:00:28]} (38. Bf2 $1 $16 Bg4 39. Qe7+ (39. bxc5 Ne2+ $11) 39... Qxe7 40. dxe7) 38... bxc5 {[%emt 0:00:07]} (38... Nc2 $5 {[%cal Rc2e1]} 39. Qf2 Nxe3 40. Qxe3 bxc5 $16) 39. Bxd4 {[%emt 0:06:24]} (39. Bf2 $5 {[%cal Rf2h4]} Bg4 40. Bxd4 (40. Rxc5 Ne2+ 41. Kf1 Rxd6 $17) 40... cxd4 41. Qe5 $14) 39... cxd4 {[%emt 0:00:06]} 40. Qe5 {[%emt 0:00:03]} Qxe5 $2 {[%emt 0:01:58]} (40... Be6 $11 {and Black has nothing to worry.} 41. Rxd4 Bxa2) 41. fxe5 $11 {[%emt 0:00:05][%mdl 4096] Endgame KRB-KRB} Be6 $2 {[%emt 0:00:16]} (41... Kf7 42. Rxd4 Ke6) 42. Rxd4 $18 {[%emt 0:00:14] White is clearly winning.} Bxa2 {[%emt 0:00:11]} (42... g5 $142 43. Kf2 Kf8) 43. Bh3 {[%emt 0:01:22] Ra4 would be deadly.} Kf7 {[%emt 0:02:40]} 44. Rf4+ {[%emt 0:01:52]} Kg7 {[%emt 0:00:22]} 45. d7 {[%emt 0:00:29]} g5 {[%emt 0:00:56]} 46. Rf2 {[%emt 0:00:12]} Bd5 {[%emt 0:00:43]} 47. e6 {[%emt 0:00:47]} Bxe6 {[%emt 0:00:36]} 48. Bxe6 {[%emt 0:00:02]} Kg6 {[%emt 0:00:10]} 49. Rf7 {[%emt 0:00:26] Weighted Error Value: White=0.18 (very precise) /Black=0.39} 1-0

[Event "14th Chennai GM Open 2023"]
[Site "Chennai"]
[Date "2024.01.01"]
[Round "2.2"]
[White "Mrityunjay Kumar"]
[Black "Srihari L R"]
[Result "0-1"]
[ECO "B40"]
[WhiteElo "1696"]
[BlackElo "2467"]
[Annotator "TA"]
[PlyCount "76"]
[EventDate "2023.12.31"]
[EventType "swiss"]
[EventCountry "IND"]
[SourceTitle "playchess.com"]
[Source "ChessBase"]
[SourceQuality "1"]
[TimeControl "5400+30"]

{[%evp 11,76,7,10,10,5,0,0,0,-1,3,0,0,0,-19,-17,-15,-8,-10,-22,-22,11,-214,-218,-228,-209,-231,-83,-378,-72,-164,-161,-255,-224,-377,-388,-354,-350,-423,-248,-250,-164,-162,-168,-264,-260,-297,-238,-212,-208,-491,-491,-482,-466,-438,-410,-493,-494,-550,-505,-694,-668,-854,-820,-784,-754,-1497,-1486]} 1. e4 {[%emt 0:00:07]} c5 {[%emt 0:00:25]} 2. Nf3 {[%emt 0:00:11]} e6 {[%emt 0:00:05]} 3. g3 {[%emt 0:00:11]} Nc6 {[%emt 0:02:44]} 4. Bg2 {[%emt 0:00:11]} Nf6 {[%emt 0:00:47]} 5. Nc3 {[%emt 0:00:11]} d5 {[%emt 0:05:10]} 6. exd5 {[%emt 0:00:12]} exd5 {[%emt 0:00:04]} 7. d4 {[%emt 0:00:24] The main line 7.d4 scores better than 7.0-0. B40: Sicilian: 2...e6, Unusual lines.} Bg4 {[%emt 0:08:40]} 8. h3 {[%emt 0:00:09]} cxd4 {[%emt 0:05:14] [#] Strongly threatening ...Bxf3.} 9. hxg4 {[%emt 0:06:56] The position is equal.} dxc3 {[%emt 0:00:31]} 10. O-O {[%emt 0:00:14]} Bc5 {[%emt 0:22:35]} (10... Nxg4 11. bxc3 Be7 12. Rb1 $11) 11. bxc3 {[%emt 0:09:59]} O-O {[%emt 0:02:03] [#] Active counter play!} 12. Bg5 $146 {[%emt 0:00:47]} (12. Nd2 $5 {[%cal Rg4g5]}) ({Predecessor:} 12. Nd4 Ne4 13. Nf5 Re8 14. Bxe4 dxe4 15. Be3 Bxe3 16. Nxe3 h6 17. Rb1 b6 18. Rb5 {0-1 Lu,S (2597)-Wang,H (2722) Shaoxing Hua Yi Rapid Cup 2nd 2023 (4.1)}) 12... h6 {[%emt 0:05:32]} 13. Bxf6 {[%emt 0:00:17]} Qxf6 {[%emt 0:00:03]} 14. Qxd5 {[%emt 0:00:12]} Qxc3 {[%emt 0:00:07]} 15. g5 {[%emt 0:10:48]} Rad8 {[%emt 0:01:38]} (15... Qxc2 16. gxh6 gxh6 17. Qh5 $14) (15... hxg5 $5 {[%cal Rg5g4]} 16. Qf5 Nd4 17. Nxd4 Bxd4 $15) 16. Qe4 {[%emt 0:00:36] White is weak on the dark squares} (16. Qb3 $11 {and White is okay.} Qxb3 17. axb3) 16... Rfe8 {[%emt 0:01:25]} 17. Qg4 {[%emt 0:03:23] [#]} Bxf2+ $1 {[%emt 0:03:15][%mdl 576] Deflection} 18. Kh2 {[%emt 0:00:02]} (18. Kh1 Re6) 18... Be3 {[%emt 0:02:46]} (18... Qxc2 19. gxh6 g6 20. Rac1 Qxa2 21. Ng5) (18... Re6 $19 {has better winning chances. aiming for ...hxg5.} 19. Rad1 Rxd1 20. Rxd1 Qxc2) 19. Rab1 $2 {[%emt 0:02:41][%mdl 8192]} (19. g6 $17) 19... b6 $2 {[%emt 0:01:52]} (19... Qxc2 $2 20. gxh6 Bxh6 21. Rxb7 $19) (19... hxg5 $19 {is more deadly.} 20. Kh1 Qxc2) 20. gxh6 {[%emt 0:10:06]} (20. g6 $17 f6 21. Rbd1) 20... Bxh6 $19 {[%emt 0:02:45]} 21. Rf2 {[%emt 0:00:04]} (21. Qh5 $142) 21... Re6 {[%emt 0:12:11]} 22. Rb3 $2 {[%emt 0:04:53]} (22. Bh3 {was worth a try.}) 22... Qc5 {[%emt 0:00:28]} 23. Rf1 {[%emt 0:01:04]} Qxc2 {[%emt 0:01:08]} 24. Qh5 {[%emt 0:02:13]} Rf6 {[%emt 0:04:50]} (24... Qxa2 $2 {too greedy.} 25. Rc3 Bd2 26. Rf2 $19 (26. Nxd2 $2 Rh6 $19)) (24... Bf4 $142 {...Rh6 would be deadly.} 25. gxf4 Rh6 26. Qxh6 gxh6) 25. Ne1 {[%emt 0:06:58]} Qg6 {[%emt 0:00:23]} ({Avoid the trap} 25... Qd2 $2 26. Rxf6 gxf6 27. Nf3) 26. Qxg6 {[%emt 0:00:03]} Rxg6 {[%emt 0:00:10]} 27. Rc3 {[%emt 0:00:13]} (27. Rd3 $142) 27... Ne5 {[%emt 0:02:19] Hoping for ...Bd2.} 28. Nf3 {[%emt 0:04:25]} Ng4+ {[%emt 0:00:03]} 29. Kh3 {[%emt 0:00:14]} Ne3 {[%emt 0:00:14]} 30. Rf2 {[%emt 0:00:22]} (30. Ne5 {was called for.}) 30... Nd1 {[%emt 0:00:08][%csl LRc3,LRf2]} 31. Rfc2 {[%emt 0:00:15]} Nxc3 {[%emt 0:00:06]} 32. Rxc3 {[%emt 0:00:04]} Rgd6 {[%emt 0:00:22]} 33. Ne5 {[%emt 0:00:37]} Re8 {[%emt 0:00:16] Black is clearly winning.} 34. Nc6 {[%emt 0:01:05]} a5 {[%emt 0:00:13]} 35. Rb3 {[%emt 0:00:13]} Be3 {[%emt 0:00:31]} 36. Rb5 {[%emt 0:00:58]} Rh6+ {[%emt 0:00:31]} 37. Kg4 {[%emt 0:00:03]} Rg6+ {[%emt 0:00:08]} 38. Kf3 {[%emt 0:00:45]} Rxc6 {[%emt 0:00:04] Weighted Error Value: White=0.79/Black=0.49} 0-1

[Event "14th Chennai GM Open 2023"]
[Site "Chennai"]
[Date "2024.01.01"]
[Round "2.3"]
[White "Fedorov, Alexei"]
[Black "Mitul K H"]
[Result "1-0"]
[ECO "C54"]
[WhiteElo "2454"]
[BlackElo "1679"]
[Annotator "RC"]
[PlyCount "97"]
[EventDate "2023.12.31"]
[EventType "swiss"]
[EventCountry "IND"]
[SourceTitle "playchess.com"]
[Source "ChessBase"]
[SourceQuality "1"]
[TimeControl "5400+30"]

1. e4 {[%emt 0:00:04]} e5 {[%emt 0:00:15]} 2. Nf3 {[%emt 0:00:06]} Nc6 {[%emt 0:00:12]} 3. Bc4 {[%emt 0:00:14]} Bc5 {[%emt 0:00:08]} 4. d3 {[%emt 0:00:34]} Nf6 {[%emt 0:00:17]} 5. Nbd2 {[%emt 0:00:24]} d6 {[%emt 0:00:34]} 6. c3 {[%emt 0:00:08]} O-O {[%emt 0:00:40]} 7. h3 {[%emt 0:01:10]} a6 {[%emt 0:00:44]} 8. a4 {[%emt 0:01:03]} Ba7 {[%emt 0:00:58]} 9. O-O {[%emt 0:00:06]} h6 {[%emt 0:00:15]} 10. Re1 {[%emt 0:01:13]} Be6 {[%emt 0:01:35]} 11. Bxe6 {[%emt 0:00:44]} fxe6 {[%emt 0:00:06]} 12. Nf1 {[%emt 0:00:03]} Qe8 {[%emt 0:09:41]} 13. Be3 {[%emt 0:00:21]} Bxe3 {[%emt 0:02:35]} 14. Rxe3 {[%emt 0:01:24]} Rb8 {[%emt 0:10:38]} 15. b4 {[%emt 0:01:04]} Ne7 {[%emt 0:03:43]} 16. Qb3 {[%emt 0:01:07]} Ng6 {[%emt 0:02:34]} 17. g3 {[%emt 0:00:12]} Kh8 {[%emt 0:02:24]} 18. N1h2 {[%emt 0:00:38]} Qf7 {[%emt 0:17:00]} 19. Ra2 {[%emt 0:00:16]} b6 {[%emt 0:04:18]} 20. b5 {[%emt 0:00:40]} a5 {[%emt 0:11:06]} 21. Rc2 {[%emt 0:13:43]} Nd7 {[%emt 0:11:56]} 22. d4 {[%emt 0:01:07]} Rbc8 {[%emt 0:02:54]} 23. Rd2 {[%emt 0:02:24]} exd4 {[%emt 0:02:07]} 24. cxd4 {[%emt 0:00:14]} e5 {[%emt 0:01:02]} 25. d5 {[%emt 0:00:51]} Nc5 {[%emt 0:01:02]} 26. Qd1 {[%emt 0:01:11]} Qd7 {[%emt 0:01:36]} 27. Kg2 {[%emt 0:00:54]} Rf7 {[%emt 0:02:51]} 28. h4 {[%emt 0:01:21]} Rcf8 {[%emt 0:01:13]} 29. h5 {[%emt 0:01:49]} Ne7 {[%emt 0:00:33]} 30. Nh4 {[%emt 0:00:13]} Rf6 {[%emt 0:04:31]} 31. Ng4 {[%emt 0:09:02]} R6f7 {[%emt 0:00:10]} 32. f3 {[%emt 0:00:22]} Qd8 {[%emt 0:03:58]} 33. Re1 {[%emt 0:04:12]} Kh7 {[%emt 0:01:07]} 34. Rf2 {[%emt 0:07:47]} Nd7 {[%emt 0:01:10]} 35. Qc2 {[%emt 0:06:23]} Kh8 {[%emt 0:01:04]} 36. Ng6+ {[%emt 0:01:35]} Nxg6 {[%emt 0:00:14]} 37. hxg6 {[%emt 0:00:07]} Re7 {[%emt 0:00:42]} 38. Qc1 {[%emt 0:00:36]} Qe8 {[%emt 0:00:59]} 39. Nxh6 {[%emt 0:00:50]} Qxg6 {[%emt 0:00:29]} 40. Rh1 {[%emt 0:00:27]} Ree8 {[%emt 0:00:37]} 41. Rh4 {[%emt 0:03:45]} Nf6 {[%emt 0:00:28]} 42. Nf5+ {[%emt 0:00:25]} Kg8 {[%emt 0:00:21]} 43. Rc2 {[%emt 0:02:42]} Rf7 {[%emt 0:00:40]} 44. Rxc7 {[%emt 0:01:25]} Rxc7 {[%emt 0:00:21]} 45. Qxc7 {[%emt 0:00:07]} Qg5 {[%emt 0:00:40]} 46. Nxd6 {[%emt 0:02:15]} Rf8 {[%emt 0:00:21]} 47. Qe7 {[%emt 0:00:23]} Nh7 {[%emt 0:00:36]} 48. Qe6+ {[%emt 0:00:25]} Kh8 {[%emt 0:00:04]} 49. Nf7+ {[%emt 0:00:06]} 1-0

[Event "14th Chennai GM Open 2023"]
[Site "Chennai"]
[Date "2024.01.01"]
[Round "2.4"]
[White "Rupesh Reddy Y"]
[Black "Glek, Igor"]
[Result "0-1"]
[ECO "A41"]
[WhiteElo "1687"]
[BlackElo "2429"]
[Annotator "RC"]
[PlyCount "116"]
[EventDate "2023.12.31"]
[EventType "swiss"]
[EventCountry "IND"]
[SourceTitle "playchess.com"]
[Source "ChessBase"]
[SourceQuality "1"]
[TimeControl "5400+30"]

1. d4 {[%emt 0:00:04]} g6 {[%emt 0:02:58]} 2. c4 {[%emt 0:00:05]} Bg7 {[%emt 1:28:32]} 3. Nf3 {[%emt 0:00:16]} d6 {[%emt 0:00:00]} 4. Bf4 {[%emt 0:00:12]} Nd7 {[%emt 0:00:00]} 5. e3 {[%emt 0:01:37]} e5 {[%emt 0:00:00]} 6. Bg5 {[%emt 0:02:35]} Ne7 {[%emt 0:00:00]} 7. Nc3 {[%emt 0:01:07]} h6 {[%emt 0:00:00]} 8. Bxe7 {[%emt 0:00:09]} Qxe7 {[%emt 0:00:00]} 9. Be2 {[%emt 0:01:47]} O-O {[%emt 0:00:00]} 10. O-O {[%emt 0:00:29]} c6 {[%emt 0:00:00]} 11. dxe5 {[%emt 0:07:44]} dxe5 {[%emt 0:00:00]} 12. Nd2 {[%emt 0:03:52]} f5 {[%emt 0:00:00]} 13. Rb1 {[%emt 0:01:25]} e4 {[%emt 0:00:00]} 14. Qc2 {[%emt 0:01:58]} Ne5 {[%emt 0:00:00]} 15. b4 {[%emt 0:04:40]} Be6 {[%emt 0:00:00]} 16. c5 {[%emt 0:01:45]} a5 {[%emt 0:00:00]} 17. a3 {[%emt 0:01:31]} axb4 {[%emt 0:00:00]} 18. axb4 {[%emt 0:00:11]} Ra3 {[%emt 0:00:00]} 19. Nb3 {[%emt 0:04:11]} Nd3 {[%emt 0:00:00]} 20. Nd4 {[%emt 0:01:09]} Bxd4 {[%emt 0:00:00]} 21. exd4 {[%emt 0:00:14]} Nf4 {[%emt 0:00:00]} 22. Rfe1 {[%emt 0:01:40]} Qg5 {[%emt 0:00:00]} 23. g3 {[%emt 0:01:00]} Nh3+ {[%emt 0:00:00]} 24. Kg2 {[%emt 0:01:45]} f4 {[%emt 0:00:00]} 25. Qxe4 {[%emt 0:04:52]} f3+ {[%emt 0:00:00]} 26. Bxf3 {[%emt 0:00:47]} Bf5 {[%emt 0:00:00]} 27. Qe3 {[%emt 0:01:32]} Bxb1 {[%emt 0:00:00]} 28. Kxh3 {[%emt 0:02:41]} Rxf3 {[%emt 0:00:00]} 29. Qxf3 {[%emt 0:08:51]} Qf5+ {[%emt 0:00:00]} 30. Qg4 {[%emt 0:00:08]} h5 {[%emt 0:00:00]} 31. Qxf5 {[%emt 0:00:37]} Bxf5+ {[%emt 0:00:00]} 32. Kh4 {[%emt 0:00:58]} Rxc3 {[%emt 0:00:00]} 33. Re7 {[%emt 0:03:53]} Rc4 {[%emt 0:00:00]} 34. Rxb7 {[%emt 0:00:07]} Rxd4+ {[%emt 0:00:00]} 35. Kg5 {[%emt 0:00:04]} Kf8 {[%emt 0:00:00]} 36. Rb6 {[%emt 0:01:59]} Ke7 {[%emt 0:00:00]} 37. Rxc6 {[%emt 0:00:35]} Rg4+ {[%emt 0:00:00]} 38. Kh6 {[%emt 0:00:01]} Rxb4 {[%emt 0:00:00]} 39. f3 {[%emt 0:02:57]} Rb2 {[%emt 0:03:38]} 40. h3 {[%emt 0:10:13]} Rh2 {[%emt 0:00:21]} 41. g4 {[%emt 0:01:26]} hxg4 {[%emt 0:00:06]} 42. fxg4 {[%emt 0:00:05]} Rxh3+ {[%emt 0:00:08]} 43. Kg7 {[%emt 0:00:10]} Be4 {[%emt 0:00:34]} 44. Rc7+ {[%emt 0:01:31]} Ke6 {[%emt 0:07:35]} 45. Rc8 {[%emt 0:00:58]} Rg3 {[%emt 0:00:12]} 46. Re8+ {[%emt 0:00:38]} Kd5 {[%emt 0:00:03]} 47. c6 {[%emt 0:00:36]} Rc3 {[%emt 0:00:07]} 48. Kf6 {[%emt 0:00:58]} Rxc6+ {[%emt 0:00:05]} 49. Kg5 {[%emt 0:00:14]} Kd4 {[%emt 0:01:24]} 50. Kf4 {[%emt 0:00:20]} Rf6+ {[%emt 0:00:26]} 51. Kg5 {[%emt 0:00:01]} Rf1 {[%emt 0:00:48]} 52. Kh6 {[%emt 0:01:15]} Ke3 {[%emt 0:01:16]} 53. Kg5 {[%emt 0:00:17]} Rg1 {[%emt 0:00:48]} 54. Rf8 {[%emt 0:00:19]} Bf5 {[%emt 0:03:05]} 55. Rxf5 {[%emt 0:00:16]} gxf5 {[%emt 0:00:04]} 56. Kxf5 {[%emt 0:00:04]} Kf3 {[%emt 0:00:40]} 57. g5 {[%emt 0:00:18]} Kg3 {[%emt 0:00:02]} 58. g6 {[%emt 0:00:11]} Kh4 {[%emt 0:00:01]} 0-1

[Event "14th Chennai GM Open 2023"]
[Site "Chennai"]
[Date "2024.01.01"]
[Round "2.5"]
[White "Ajay Karthikeyan"]
[Black "Aarush Rajesh"]
[Result "1-0"]
[ECO "A00"]
[WhiteElo "2423"]
[BlackElo "1670"]
[Annotator "RC"]
[PlyCount "117"]
[EventDate "2023.12.31"]
[EventType "swiss"]
[EventCountry "IND"]
[SourceTitle "playchess.com"]
[Source "ChessBase"]
[SourceQuality "1"]
[TimeControl "5400+30"]

1. b4 {[%emt 0:00:03]} Nf6 {[%emt 0:00:41]} 2. Bb2 {[%emt 0:00:01]} g6 {[%emt 0:00:16]} 3. e4 {[%emt 0:00:17]} Bg7 {[%emt 0:01:07]} 4. e5 {[%emt 0:00:23]} Nd5 {[%emt 0:00:19]} 5. a3 {[%emt 0:00:48]} d6 {[%emt 0:00:48]} 6. c4 {[%emt 0:03:37]} Nb6 {[%emt 0:00:18]} 7. Nf3 {[%emt 0:01:33]} Nc6 {[%emt 0:03:31]} 8. d4 {[%emt 0:01:34]} dxe5 {[%emt 0:10:12]} 9. d5 {[%emt 0:00:25]} Nd4 {[%emt 0:00:05]} 10. Nxd4 {[%emt 0:00:05]} exd4 {[%emt 0:00:06]} 11. Bxd4 {[%emt 0:00:04]} O-O {[%emt 0:06:08]} 12. Bxg7 {[%emt 0:00:17]} Kxg7 {[%emt 0:00:02]} 13. Nc3 {[%emt 0:00:49]} e6 {[%emt 0:04:46]} 14. Qd4+ {[%emt 0:02:27]} Qf6 {[%emt 0:03:52]} 15. Qxf6+ {[%emt 0:00:01]} Kxf6 {[%emt 0:00:01]} 16. O-O-O {[%emt 0:00:03]} a5 {[%emt 0:09:23]} 17. b5 {[%emt 0:03:46]} Nd7 {[%emt 0:05:01]} 18. dxe6 {[%emt 0:00:07]} fxe6 {[%emt 0:00:14]} 19. Be2 {[%emt 0:00:05]} Nc5 {[%emt 0:03:32]} 20. Bf3 {[%emt 0:00:02]} Rb8 {[%emt 0:04:02]} 21. Kc2 {[%emt 0:00:10]} b6 {[%emt 0:01:02]} 22. Rhe1 {[%emt 0:01:01]} Bb7 {[%emt 0:04:46]} 23. Bxb7 {[%emt 0:00:34]} Rxb7 {[%emt 0:02:24]} 24. Ne4+ {[%emt 0:00:07]} Nxe4 {[%emt 0:02:20]} 25. Rxe4 {[%emt 0:00:15]} Ke7 {[%emt 0:01:36]} 26. f3 {[%emt 0:00:02]} Rbb8 {[%emt 0:02:46]} 27. Rde1 {[%emt 0:10:43]} Rf6 {[%emt 0:00:07]} 28. Kc3 {[%emt 0:00:04]} Rd8 {[%emt 0:01:53]} 29. Re5 {[%emt 0:02:07]} Rd6 {[%emt 0:02:53]} 30. c5 {[%emt 0:00:16]} bxc5 {[%emt 0:01:03]} 31. Rxc5 {[%emt 0:04:34]} Kd7 {[%emt 0:00:03]} 32. Re4 {[%emt 0:07:08]} Rd5 {[%emt 0:02:27]} 33. Kc4 {[%emt 0:04:52]} Rff5 {[%emt 0:04:30]} 34. Rd4 {[%emt 0:00:08]} Rxd4+ {[%emt 0:01:43]} 35. Kxd4 {[%emt 0:00:02]} Rf4+ {[%emt 0:01:04]} 36. Kc3 {[%emt 0:00:42]} Ra4 {[%emt 0:01:40]} 37. Kb3 {[%emt 0:00:04]} Rd4 {[%emt 0:00:09]} 38. Rc4 {[%emt 0:00:43]} Rd2 {[%emt 0:00:27]} 39. Rg4 {[%emt 0:00:06]} Kd6 {[%emt 0:02:45]} 40. Ka4 {[%emt 0:00:35]} Rd3 {[%emt 0:01:55]} 41. Rc4 {[%emt 0:01:02]} Rd2 {[%emt 0:01:24]} 42. g3 {[%emt 0:00:51]} Rxh2 {[%emt 0:03:14]} 43. Kxa5 {[%emt 0:00:20]} Rg2 {[%emt 0:00:53]} 44. g4 {[%emt 0:01:25]} Rg3 {[%emt 0:00:53]} 45. Rd4+ {[%emt 0:06:16]} Ke7 {[%emt 0:00:22]} 46. Ka6 {[%emt 0:09:37]} Rxf3 {[%emt 0:01:01]} 47. a4 {[%emt 0:00:02]} e5 {[%emt 0:03:44]} 48. Rc4 {[%emt 0:06:53]} Rf4 {[%emt 0:01:19]} 49. Rxc7+ {[%emt 0:00:49]} Kd8 {[%emt 0:00:03]} 50. Rxh7 {[%emt 0:00:07]} Rxa4+ {[%emt 0:00:03]} 51. Kb7 {[%emt 0:00:05]} Rxg4 {[%emt 0:00:05]} 52. b6 {[%emt 0:00:42]} Rg1 {[%emt 0:01:04]} 53. Ka8 {[%emt 0:07:35]} e4 {[%emt 0:03:37]} 54. Ra7 {[%emt 0:00:53]} e3 {[%emt 0:00:20]} 55. b7 {[%emt 0:00:02]} Rb1 {[%emt 0:00:04]} 56. b8=Q+ {[%emt 0:00:07]} Rxb8+ {[%emt 0:00:03]} 57. Kxb8 {[%emt 0:00:05]} g5 {[%emt 0:00:29]} 58. Ra5 {[%emt 0:01:09]} Ke7 {[%emt 0:00:33]} 59. Rxg5 {[%emt 0:31:20]} 1-0

[Event "14th Chennai GM Open 2023"]
[Site "Chennai"]
[Date "2024.01.01"]
[Round "2.6"]
[White "Sanjay Thiruvengadam"]
[Black "Viani Antonio Dcunha"]
[Result "0-1"]
[ECO "A00"]
[WhiteElo "1678"]
[BlackElo "2407"]
[Annotator "RC"]
[PlyCount "70"]
[EventDate "2023.12.31"]
[EventType "swiss"]
[EventCountry "IND"]
[SourceTitle "playchess.com"]
[Source "ChessBase"]
[SourceQuality "1"]
[TimeControl "5400+30"]

1. b4 {[%emt 0:00:05]} e5 {[%emt 0:00:17]} 2. Bb2 {[%emt 0:00:08]} Bxb4 {[%emt 0:00:27]} 3. Bxe5 {[%emt 0:00:07]} Nf6 {[%emt 0:00:07]} 4. e3 {[%emt 0:00:08]} d5 {[%emt 0:01:06]} 5. Nf3 {[%emt 0:00:32]} O-O {[%emt 0:01:07]} 6. Be2 {[%emt 0:02:34]} c5 {[%emt 0:01:14]} 7. O-O {[%emt 0:03:34]} Nc6 {[%emt 0:01:47]} 8. Bf4 {[%emt 0:09:23]} Re8 {[%emt 0:07:09]} 9. c3 {[%emt 0:06:04]} Ba5 {[%emt 0:01:29]} 10. d3 {[%emt 0:06:25]} b5 {[%emt 0:05:49]} 11. a4 {[%emt 0:16:14]} b4 {[%emt 0:02:55]} 12. cxb4 {[%emt 0:05:13]} Bxb4 {[%emt 0:03:31]} 13. Qc2 {[%emt 0:08:45]} h6 {[%emt 0:01:21]} 14. d4 {[%emt 0:08:42]} c4 {[%emt 0:17:21]} 15. Nc3 {[%emt 0:02:51]} Bg4 {[%emt 0:08:43]} 16. Nb5 {[%emt 0:13:17]} Rc8 {[%emt 0:02:39]} 17. Ne5 {[%emt 0:02:23]} Bxe2 {[%emt 0:01:18]} 18. Qxe2 {[%emt 0:01:57]} a6 {[%emt 0:01:43]} 19. Nxc6 {[%emt 0:05:21]} Rxc6 {[%emt 0:00:12]} 20. Qb2 {[%emt 0:01:04]} Ba5 {[%emt 0:05:29]} 21. Qa3 {[%emt 0:02:43]} Ne4 {[%emt 0:02:26]} 22. f3 {[%emt 0:02:07]} Nd2 {[%emt 0:01:09]} 23. Nd6 {[%emt 0:00:15]} Nxf1 {[%emt 0:03:48]} 24. Nxe8 {[%emt 0:01:20]} Nxe3 {[%emt 0:02:04]} 25. Qxe3 {[%emt 0:01:15]} Re6 {[%emt 0:00:09]} 26. Qf2 {[%emt 0:00:31]} Qxe8 {[%emt 0:00:49]} 27. Kf1 {[%emt 0:00:18]} Bc3 {[%emt 0:04:35]} 28. Rb1 {[%emt 0:00:28]} Qxa4 {[%emt 0:00:17]} 29. h3 {[%emt 0:00:44]} a5 {[%emt 0:00:54]} 30. Be5 {[%emt 0:00:23]} f6 {[%emt 0:01:50]} 31. Bf4 {[%emt 0:00:05]} Bb4 {[%emt 0:00:36]} 32. h4 {[%emt 0:00:48]} c3 {[%emt 0:01:08]} 33. Rc1 {[%emt 0:00:10]} Ba3 {[%emt 0:02:39]} 34. Rc2 {[%emt 0:01:03]} Bd6 {[%emt 0:01:20]} 35. Bxd6 {[%emt 0:00:28]} Qa1+ {[%emt 0:00:16]} 0-1